bitfinex/quotes_SOLUSD_20220311
["timestamp","ask_amount","ask_price","bid_price","bid_amount"]
[1646963508473,6.127,81.636,81.561,3.04447957]
[1646963508672,6.127,81.637,81.58,18.3877]
[1646963508874,36.82319483,81.638,81.581,16.32856798]
[1646963509078,6.126,81.648,81.581,16.32856798]
[1646963509274,24.2185,81.649,81.581,25.36304755]
[1646963509475,24.2185,81.649,81.582,3.04447957]
[1646963509674,24.2185,81.649,81.59,18.3854]
[1646963509977,56.68603796,81.673,81.59,32.9254]
[1646963510179,56.68603796,81.673,81.591,3.04447957]
[1646963510375,56.68603796,81.673,81.592,6.0]
[1646963510775,56.68603796,81.673,81.593,3.04447957]
[1646963510977,56.68603796,81.673,81.594,58.75695179]
[1646963511177,56.68603796,81.673,81.61,18.3748]
[1646963511375,56.68603796,81.673,81.611,16.32856798]
[1646963512074,30.3415,81.699,81.611,16.32856798]
[1646963512277,30.3415,81.699,81.62,18.377]
[1646963512875,24.2185,81.699,81.62,18.377]
[1646963513075,65.47685023,81.698,81.62,18.377]
[1646963513275,91.1041275,81.698,81.62,18.377]
[1646963514077,65.47685023,81.698,81.62,18.377]
[1646963514279,65.47685023,81.698,81.62,21.42147957]
[1646963515483,65.47685023,81.698,81.62,18.377]
[1646963515684,65.47685023,81.698,81.62,32.917]
[1646963515882,22.9777,81.709,81.621,130.84447957]
[1646963516083,6.122,81.724,81.64,18.3653]
[1646963516282,52.3733,81.748,81.65,14.54]
[1646963516679,52.3733,81.748,81.651,6.0]
[1646963516879,52.3733,81.748,81.652,52.75695179]
[1646963516880,80.59917501,81.747,81.652,52.75695179]
[1646963517080,80.59917501,81.747,81.63,14.54]
[1646963517081,6.119,81.746,81.63,14.54]
[1646963517279,121.8,81.745,81.622,48.9807]
[1646963517581,18.384,81.71,81.6,14.54]
[1646963517784,18.384,81.71,81.58,18.3328]
[1646963517785,6.123,81.709,81.59,14.54]
[1646963517984,70.6477,81.708,81.581,48.9807]
[1646963518181,40.48558247,81.707,81.581,48.9807]
[1646963518582,18.3877,81.7,81.581,48.9807]
[1646963518881,14.54,81.69,81.581,48.9807]
[1646963519081,14.54,81.68,81.581,48.9807]
[1646963519286,103.49562633,81.679,81.582,56.5440152]
[1646963520082,18.3874,81.67,81.59,18.386]
[1646963520282,18.3874,81.67,81.582,56.5440152]
[1646963520486,30.7015,81.669,81.582,56.5440152]
[1646963521285,18.3882,81.65,81.582,56.5440152]
[1646963521487,41.27065388,81.649,81.582,56.5440152]
[1646963522085,6.126,81.648,81.582,56.5440152]
[1646963522484,6.126,81.648,81.59,18.3859]
[1646963523485,6.126,81.648,81.582,56.5440152]
[1646963524887,6.126,81.648,81.59,18.3859]
[1646963525088,41.27065388,81.649,81.59,18.3859]
[1646963526087,41.27065388,81.649,81.554,3.04447957]
[1646963526288,18.389,81.64,81.527,49.2818]
[1646963526488,6.128,81.639,81.527,49.2818]
[1646963526691,36.42909018,81.639,81.527,49.2818]
[1646963526892,30.30109018,81.638,81.527,49.2818]
[1646963527089,30.30109018,81.638,81.53,18.3978]
[1646963527293,48.06382633,81.629,81.53,32.9378]
[1646963527490,48.06382633,81.629,81.531,9.04447957]
[1646963527688,48.06382633,81.629,81.531,34.69176998]
[1646963527889,48.06382633,81.629,81.532,28.69176998]
[1646963528192,48.06382633,81.629,81.533,6.0]
[1646963528390,48.06382633,81.629,81.533,9.04447957]
[1646963528589,48.06382633,81.629,81.534,3.04447957]
[1646963528790,48.06382633,81.629,81.535,6.0]
[1646963529090,48.06382633,81.629,81.56,18.3897]
[1646963529390,3.04447957,81.628,81.561,22.56948742]
[1646963529789,23.8173,81.627,81.56,18.3897]
[1646963529989,23.8173,81.627,81.536,3.04447957]
[1646963530190,23.8173,81.627,81.57,18.3908]
[1646963530391,23.8173,81.627,81.538,23.5523]
[1646963530592,9.17247957,81.626,81.539,6.0]
[1646963530796,68.09647848,81.626,81.54,54.61352907]
[1646963530993,61.96847848,81.625,81.54,54.61352907]
[1646963531193,6.128,81.624,81.54,54.61352907]
[1646963531394,40.83986787,81.624,81.54,54.61352907]
[1646963531598,3.04447957,81.623,81.54,54.61352907]
[1646963531793,6.128,81.622,81.54,54.61352907]
[1646963531995,18.3928,81.62,81.55,18.3952]
[1646963532195,6.128,81.619,81.55,18.3952]
[1646963533997,18.3928,81.62,81.55,18.3952]
[1646963541026,6.128,81.619,81.55,18.3952]
[1646963541400,6.128,81.639,81.551,3.04447957]
[1646963541601,3.04447957,81.651,81.58,18.3785]
[1646963541799,6.128,81.664,81.58,38.3885]
[1646963542003,3.04447957,81.679,81.581,9.04447957]
[1646963542199,6.125,81.681,81.581,9.04447957]
[1646963542409,6.125,81.681,81.582,3.04447957]
[1646963542602,78.92627888,81.68,81.583,6.0]
[1646963543001,78.92627888,81.68,81.584,3.04447957]
[1646963543302,60.54767888,81.68,81.601,50.4426451]
[1646963543504,6.123,81.679,81.601,50.4426451]
[1646963544504,6.123,81.679,81.62,18.3769]
[1646963544705,6.123,81.679,81.621,18.64287467]
[1646963544907,60.54767888,81.68,81.621,18.64287467]
[1646963545105,23.4663,81.682,81.621,25.46287467]
[1646963545506,23.4663,81.682,81.63,18.3716]
[1646963546305,6.123,81.699,81.63,18.3716]
[1646963546508,6.122,81.71,81.63,38.6916]
[1646963547308,59.4435168,81.702,81.63,38.6916]
[1646963547509,62.48799637,81.702,81.63,18.3716]
[1646963547710,38.32053453,81.701,81.621,18.64287467]
[1646963547910,67.76943453,81.701,81.58,14.54]
[1646963548210,46.73853453,81.7,81.585,10.0]
[1646963548410,6.123,81.699,81.57,14.54]
[1646963548632,6.123,81.699,81.571,24.7106]
[1646963548633,18.3855,81.67,81.571,24.7106]
[1646963548832,47.5638,81.669,81.59,18.3874]
[1646963549037,77.45476341,81.669,81.59,18.3874]
[1646963549231,80.49924298,81.669,81.59,18.3874]
[1646963549432,3.04447957,81.668,81.59,18.3874]
[1646963550233,3.04447957,81.668,81.59,32.9274]
[1646963550439,3.04447957,81.668,81.59,35.97187957]
[1646963550633,3.04447957,81.668,81.59,32.9274]
[1646963552336,3.04447957,81.668,81.58,18.3894]
[1646963552634,45.72077221,81.667,81.58,18.3894]
[1646963552836,6.125,81.666,81.58,18.3894]
[1646963553036,54.89025178,81.666,81.58,18.3894]
[1646963553234,18.384,81.66,81.58,18.3894]
[1646963553434,6.125,81.659,81.58,18.3894]
[1646963553635,9.16947957,81.659,81.58,18.3894]
[1646963553838,24.4017,81.658,81.58,18.3894]
[1646963554037,6.126,81.657,81.58,18.3894]
[1646963554837,18.3859,81.65,81.58,18.3894]
[1646963558241,3.04447957,81.649,81.572,62.23401447]
[1646963558443,18.3925,81.63,81.572,62.23401447]
[1646963558643,23.9525,81.63,81.542,46.3842]
[1646963558842,49.29777957,81.629,81.542,46.3842]
[1646963559243,46.2533,81.629,81.542,46.3842]
[1646963559444,46.2533,81.629,81.56,18.3938]
[1646963559644,54.62829172,81.628,81.56,18.3938]
[1646963560347,54.62829172,81.628,81.56,21.43827957]
[1646963560546,54.62829172,81.628,81.56,18.3938]
[1646963561450,18.3919,81.62,81.56,18.3938]
[1646963561651,54.62829172,81.628,81.56,18.3938]
[1646963565454,54.62829172,81.628,81.561,3.04447957]
[1646963565754,6.127,81.672,81.58,18.3796]
[1646963565956,52.07,81.672,81.58,18.3796]
[1646963566556,18.3828,81.67,81.56,14.54]
[1646963566857,89.0665028,81.669,81.56,18.3934]
[1646963567055,108.67769962,81.669,81.56,18.3934]
[1646963567278,48.76525178,81.668,81.56,18.3934]
[1646963567457,6.126,81.667,81.56,18.3934]
[1646963567656,54.89125178,81.667,81.56,18.3934]
[1646963567857,32.19853453,81.666,81.56,18.3934]
[1646963568056,6.126,81.665,81.56,18.3934]
[1646963568258,18.3917,81.64,81.56,18.3934]
[1646963568556,35.54803237,81.638,81.56,18.3934]
[1646963568757,35.54803237,81.638,81.58,18.3861]
[1646963569157,35.54803237,81.638,81.581,7.73881334]
[1646963570463,35.54803237,81.638,81.59,18.3862]
[1646963571759,35.54803237,81.638,81.563,18.5114]
[1646963571760,35.54803237,81.638,81.56,14.54]
[1646963571963,41.87803237,81.638,81.52,32.01172394]
[1646963572159,3.04447957,81.637,81.544,10.0]
[1646963572361,32.19853453,81.637,81.544,10.0]
[1646963572559,57.29003076,81.637,81.544,10.0]
[1646963572760,38.32653453,81.636,81.545,51.19922752]
[1646963573162,18.3901,81.63,81.55,18.3963]
[1646963573361,6.128,81.629,81.55,18.3963]
[1646963573760,6.128,81.634,81.55,18.3963]
[1646963574166,18.3932,81.62,81.55,18.3963]
[1646963574362,23.7609,81.619,81.55,18.3963]
[1646963575163,18.3947,81.61,81.54,18.3987]
[1646963575462,23.7609,81.609,81.54,18.3987]
[1646963576062,49.84778135,81.608,81.541,66.71391494]
[1646963576362,6.128,81.654,81.56,18.3884]
[1646963576562,1.63306165,81.667,81.57,14.54]
[1646963576762,46.6678,81.674,81.571,23.416]
[1646963576965,46.6678,81.674,81.572,121.8]
[1646963577171,46.6678,81.674,81.571,72.00699649]
[1646963577372,46.6678,81.674,81.574,5.4160844]
[1646963577373,58.17912688,81.673,81.574,5.4160844]
[1646963577572,18.3819,81.67,81.59,18.3867]
[1646963577772,58.17912688,81.673,81.591,6.0]
[1646963577773,6.125,81.669,81.591,6.0]
[1646963577973,49.00964731,81.673,81.574,5.4160844]
[1646963577974,6.125,81.671,81.574,5.4160844]
[1646963578278,3.04447957,81.669,81.574,5.4160844]
[1646963578475,3.04447957,81.669,81.519,12.73627695]
[1646963578476,6.125,81.668,81.551,24.4196]
[1646963578678,18.3831,81.66,81.551,24.4196]
[1646963578876,30.9524,81.659,81.551,24.4196]
[1646963579074,30.9524,81.659,81.55,18.3942]
[1646963579282,145.04501054,81.658,81.55,18.3942]
[1646963579476,6.127,81.657,81.551,52.66937921]
[1646963579680,56.21231627,81.657,81.551,52.66937921]
[1646963579875,40.3248329,81.629,81.56,18.3933]
[1646963580077,6.127,81.628,81.56,18.3933]
[1646963580278,6.127,81.628,81.526,24.6879]
[1646963580279,3.04447957,81.628,81.526,24.6879]
[1646963580479,24.3767,81.627,81.527,6.0]
[1646963580678,6.128,81.626,81.527,6.0]
[1646963580877,18.3933,81.62,81.527,6.0]
[1646963581178,3.04447957,81.625,81.53,18.4003]
[1646963581378,3.04447957,81.625,81.528,61.45890172]
[1646963581379,3.04447957,81.625,81.531,6.0]
[1646963581577,6.128,81.624,81.531,6.0]
[1646963581875,3.04447957,81.623,81.531,6.0]
[1646963582076,6.128,81.622,81.531,6.0]
[1646963582501,3.04447957,81.621,81.532,3.04447957]
[1646963582701,6.128,81.62,81.533,6.0]
[1646963583200,27.56517957,81.62,81.55,18.3893]
[1646963584306,27.56517957,81.62,81.54,18.3974]
[1646963585309,42.10517957,81.62,81.51,9.40036392]
[1646963585508,18.4066,81.59,81.5,18.4048]
[1646963585716,55.7496,81.589,81.487,3.04447957]
[1646963585906,58.79407957,81.589,81.49,14.54]
[1646963586210,52.05412688,81.588,81.513,0.00398742]
[1646963586407,6.131,81.587,81.513,0.00398742]
[1646963586610,18.4044,81.57,81.513,0.00398742]
[1646963586812,14.54,81.56,81.513,0.00398742]
[1646963587207,54.6477,81.559,81.513,0.00398742]
[1646963587410,81.48800573,81.559,81.513,0.00398742]
[1646963587606,18.4213,81.55,81.513,0.00398742]
[1646963587807,40.2213,81.55,81.513,0.00398742]
[1646963588007,3.04447957,81.549,81.513,0.00398742]
[1646963588407,47.5085,81.548,81.513,0.00398742]
[1646963588909,3.04447957,81.547,81.513,0.00398742]
[1646963589108,18.413,81.54,81.513,0.00398742]
[1646963589408,47.5085,81.548,81.513,0.00398742]
[1646963589606,6.132,81.547,81.513,0.00398742]
[1646963590106,18.4142,81.54,81.513,0.00398742]
[1646963590312,3.04447957,81.546,81.513,0.00398742]
[1646963590509,3.04447957,81.539,81.513,0.00398742]
[1646963590909,47.5085,81.548,81.513,0.00398742]
[1646963591307,6.132,81.547,81.513,0.00398742]
[1646963592708,3.04447957,81.546,81.513,0.00398742]
[1646963594107,47.5085,81.548,81.513,0.00398742]
[1646963595310,50.55297957,81.548,81.513,0.00398742]
[1646963597512,23.784,81.548,81.513,0.00398742]
[1646963597912,6.132,81.597,81.513,0.00398742]
[1646963598115,24.8612,81.587,81.513,0.00398742]
[1646963598713,23.1702,81.586,81.52,18.3977]
[1646963598914,23.1702,81.586,81.52,32.9377]
[1646963599515,23.1702,81.586,81.521,12.53978185]
[1646963599715,25.22011359,81.618,81.54,18.3917]
[1646963599918,25.22011359,81.618,81.53,14.54]
[1646963600117,25.22011359,81.618,81.521,12.53978185]
[1646963600118,57.20387957,81.617,81.521,12.53978185]
[1646963600518,28.26459316,81.616,81.521,12.53978185]
[1646963600722,6.128,81.615,81.521,12.53978185]
[1646963600919,34.39259316,81.615,81.53,18.3956]
[1646963601126,9.17247957,81.615,81.53,32.9356]
[1646963601320,59.59081159,81.616,81.53,32.9356]
[1646963602119,59.59081159,81.616,81.531,3.04447957]
[1646963602322,59.59081159,81.616,81.55,18.3858]
[1646963602523,59.59081159,81.616,81.551,48.07260224]
[1646963603225,48.0314,81.617,81.56,18.3889]
[1646963603825,48.0314,81.617,81.551,48.07260224]
[1646963604224,60.07321623,81.616,81.551,48.07260224]
[1646963605125,60.07321623,81.616,81.551,47.57260224]
[1646963605531,60.07321623,81.616,81.56,18.3887]
[1646963608647,60.07321623,81.616,81.56,17.8887]
[1646963609449,3.04447957,81.615,81.552,6.128]
[1646963609849,60.07321623,81.616,81.551,47.57260224]
[1646963610451,60.07321623,81.616,81.56,18.39]
[1646963610654,48.0314,81.617,81.56,18.39]
[1646963611352,48.0314,81.617,81.56,32.93]
[1646963612853,51.07587957,81.617,81.551,47.57260224]
[1646963613154,83.17599316,81.617,81.551,47.57260224]
[1646963613752,51.07587957,81.617,81.551,47.57260224]
[1646963614153,48.0314,81.617,81.551,47.57260224]
[1646963615553,3.04447957,81.63,81.56,18.3911]
[1646963615757,47.1529,81.662,81.57,14.54]
[1646963616354,47.1529,81.662,81.571,59.64845961]
[1646963616554,48.26235425,81.661,81.572,21.01291753]
[1646963617054,48.26235425,81.661,81.591,47.57260224]
[1646963617254,54.38735425,81.661,81.591,47.57260224]
[1646963617455,80.65861407,81.661,81.561,24.205]
[1646963617660,86.17861407,81.661,81.561,24.205]
[1646963618271,18.3849,81.66,81.561,24.205]
[1646963618466,6.126,81.659,81.562,47.58713577]
[1646963618668,32.39725982,81.659,81.562,47.58713577]
[1646963618866,50.26866066,81.659,81.54,67.4278]
[1646963619068,121.8,81.657,81.54,6.128]
[1646963619268,18.393,81.63,81.54,6.128]
[1646963619567,14.54,81.62,81.54,6.128]
[1646963619792,121.8,81.618,81.54,6.128]
[1646963619969,121.8,81.616,81.482,22.9445]
[1646963620169,121.8,81.614,81.482,22.9445]
[1646963620472,32.9467,81.6,81.482,22.9445]
[1646963620669,54.1385,81.599,81.482,22.9445]
[1646963621069,3.04447957,81.598,81.483,59.58288081]
[1646963621269,18.4014,81.59,81.52,18.4014]
[1646963621471,72.44405425,81.589,81.521,9.00263896]
[1646963622270,18.4025,81.58,81.521,9.00263896]
[1646963622677,21.44697957,81.58,81.521,9.00263896]
[1646963623572,3.04447957,81.58,81.521,9.00263896]
[1646963624774,72.44405425,81.589,81.521,9.00263896]
[1646963625174,18.402,81.58,81.521,9.00263896]
[1646963625679,3.04447957,81.579,81.501,23.1036]
[1646963626278,18.4041,81.57,81.501,23.1036]
[1646963626479,18.4041,81.57,81.48,14.54]
[1646963626480,6.131,81.569,81.48,14.54]
[1646963626679,9.17547957,81.569,81.481,61.41443496]
[1646963626879,3.04447957,81.568,81.481,61.41443496]
[1646963627310,49.2089,81.567,81.481,61.41443496]
[1646963628712,49.2089,81.567,81.484,3.04447957]
[1646963629712,49.2089,81.567,81.501,7.17108481]
[1646963630112,49.2089,81.567,81.52,18.402]
[1646963630914,49.2089,81.567,81.501,7.17108481]
[1646963631123,63.44471148,81.566,81.515,61.41443496]
[1646963631314,18.4059,81.56,81.483,24.8329]
[1646963632615,18.4059,81.56,81.484,54.76527615]
[1646963633116,18.4059,81.56,81.5,18.4068]
[1646963634316,104.44923627,81.567,81.501,13.82024362]
[1646963636116,18.4056,81.56,81.51,18.4049]
[1646963637918,104.44923627,81.567,81.501,13.82024362]
[1646963638120,101.4047567,81.567,81.52,18.4028]
[1646963638318,101.4047567,81.567,81.521,54.76527615]
[1646963639124,6.131,81.616,81.53,18.3977]
[1646963639322,54.2585,81.616,81.53,18.3977]
[1646963639523,3.04447957,81.597,81.53,18.3977]
[1646963639823,3.04447957,81.615,81.53,18.3977]
[1646963640029,61.7911383,81.614,81.53,18.3977]
[1646963640429,61.7911383,81.614,81.483,24.8329]
[1646963640430,32.937,81.6,81.483,24.8329]
[1646963640632,24.9255,81.599,81.483,24.8329]
[1646963640829,6.13,81.598,81.483,24.8329]
[1646963641032,42.10235998,81.598,81.483,24.8329]
[1646963641330,70.14370189,81.597,81.484,57.0274438]
[1646963641532,6.13,81.596,81.484,57.0274438]
[1646963641729,66.91141363,81.596,81.484,57.0274438]
[1646963641930,60.78141363,81.595,81.484,57.0274438]
[1646963642130,55.6631383,81.579,81.511,11.55807597]
[1646963642331,79.2428383,81.579,81.483,24.8329]
[1646963642730,66.91241363,81.578,81.483,24.8329]
[1646963643129,60.78141363,81.577,81.483,24.8329]
[1646963643330,6.131,81.576,81.483,24.8329]
[1646963643630,66.91241363,81.576,81.484,49.8308445]
[1646963643833,35.97235998,81.575,81.484,49.8308445]
[1646963644231,35.97235998,81.574,81.484,49.8308445]
[1646963644633,35.97235998,81.573,81.49,61.3428]
[1646963644834,35.97235998,81.573,81.49,75.8828]
[1646963645031,32.92788041,81.573,81.49,14.54]
[1646963645232,23.5797,81.579,81.51,14.54]
[1646963645732,23.5797,81.579,81.511,18.75467527]
[1646963645932,23.5797,81.579,81.52,18.4012]
[1646963646732,52.38837428,81.578,81.52,18.4012]
[1646963647734,52.38837428,81.578,81.511,18.75467527]
[1646963648738,52.38837428,81.578,81.52,18.4009]
[1646963651948,7.76406165,81.612,81.52,18.4009]
[1646963652145,6.131,81.612,81.52,35.98537957]
[1646963652350,6.13,81.615,81.52,35.98537957]
[1646963652545,48.6158,81.616,81.52,35.98537957]
[1646963652945,49.67283566,81.615,81.52,35.98537957]
[1646963653245,74.48188931,81.615,81.52,35.98537957]
[1646963653445,30.93705365,81.614,81.52,35.98537957]
[1646963653663,18.3942,81.61,81.52,35.98537957]
[1646963653965,18.3942,81.61,81.52,32.9409]
[1646963654166,66.39141363,81.609,81.52,18.4009]
[1646963654564,60.26141363,81.608,81.52,18.4009]
[1646963654765,6.13,81.607,81.52,18.4009]
[1646963654965,66.39141363,81.607,81.52,18.4009]
[1646963655165,18.4013,81.59,81.52,18.4009]
[1646963655370,40.16164455,81.589,81.52,18.4009]
[1646963655566,40.16164455,81.589,81.52,32.9409]
[1646963656372,40.16164455,81.589,81.52,35.98537957]
[1646963657371,23.98,81.616,81.52,35.98537957]
[1646963657570,23.98,81.616,81.54,18.3887]
[1646963657871,23.98,81.616,81.55,14.54]
[1646963658470,64.27524288,81.615,81.551,49.8308445]
[1646963659269,64.27524288,81.615,81.56,18.3897]
[1646963663977,64.27524288,81.615,81.56,32.9297]
[1646963666385,64.27524288,81.615,81.56,18.3897]
[1646963666581,67.31972245,81.615,81.56,18.3897]
[1646963666781,32.38058041,81.614,81.56,18.3897]
[1646963667483,48.1916,81.616,81.56,18.3897]
[1646963667683,48.1916,81.616,81.56,32.9297]
[1646963667882,32.38058041,81.626,81.56,32.9297]
[1646963668082,6.128,81.64,81.56,32.9297]
[1646963668284,52.0619,81.646,81.56,32.9297]
[1646963668483,6.127,81.647,81.561,127.8]
[1646963668682,32.38058041,81.66,81.59,18.3728]
[1646963668884,1.63306165,81.677,81.6,14.54]
[1646963669089,45.9349,81.698,81.6,14.54]
[1646963669090,22.5132,81.683,81.6,14.54]
[1646963669484,61.95726411,81.682,81.601,18.75467527]
[1646963669884,61.95726411,81.682,81.62,18.3756]
[1646963670085,6.123,81.681,81.62,18.3756]
[1646963670287,61.95726411,81.682,81.62,18.3756]
[1646963670488,61.95726411,81.682,81.602,23.2927]
[1646963670489,24.19025365,81.68,81.602,23.2927]
[1646963670688,6.123,81.679,81.602,23.2927]
[1646963670889,18.3826,81.67,81.61,18.381]
[1646963671088,6.123,81.679,81.61,18.381]
[1646963671288,6.123,81.681,81.611,65.10239442]
[1646963671490,61.95726411,81.682,81.611,65.10239442]
[1646963671992,18.3784,81.68,81.62,18.3771]
[1646963674911,18.3784,81.68,81.611,65.10239442]
[1646963675111,18.3784,81.68,81.582,24.5185]
[1646963675313,18.3784,81.68,81.58,14.54]
[1646963675511,18.3898,81.65,81.56,14.54]
[1646963675713,48.7091,81.649,81.56,14.54]
[1646963675911,48.7091,81.649,81.56,32.9319]
[1646963676113,61.23894932,81.648,81.561,47.408086]
[1646963676312,141.07024932,81.648,81.54,14.54]
[1646963676513,27.23473322,81.647,81.54,14.54]
[1646963676813,18.3912,81.63,81.54,14.54]
[1646963677014,24.3506,81.629,81.55,18.393]
[1646963677216,48.45138271,81.628,81.551,60.8002049]
[1646963677613,48.45138271,81.628,81.541,6.128]
[1646963677819,18.3931,81.62,81.529,49.1102]
[1646963678014,18.3931,81.62,81.53,18.3994]
[1646963678219,33.36273322,81.619,81.53,18.3994]
[1646963678617,74.96623322,81.618,81.531,55.23161858]
[1646963678816,18.3985,81.6,81.531,55.23161858]
[1646963679016,41.3830975,81.598,81.54,18.3969]
[1646963679220,46.9230975,81.598,81.5,14.54]
[1646963679422,6.13,81.597,81.5,3.04447957]
[1646963679622,14.54,81.59,81.482,48.6574]
[1646963679830,6.131,81.589,81.482,48.6574]
[1646963680027,61.3618,81.58,81.5,18.4055]
[1646963680223,53.8625,81.579,81.5,18.4055]
[1646963680429,48.45138271,81.578,81.501,6.39233717]
[1646963680623,6.131,81.577,81.501,6.39233717]
[1646963681026,3.04447957,81.576,81.501,6.39233717]
[1646963681226,18.4086,81.57,81.501,6.39233717]
[1646963681824,18.4086,81.57,81.51,18.4039]
[1646963682725,3.04447957,81.576,81.52,18.4006]
[1646963682926,47.7315,81.579,81.52,18.4006]
[1646963683125,47.7315,81.579,81.501,6.39233717]
[1646963683725,59.9224419,81.578,81.501,6.39233717]
[1646963684325,18.4038,81.57,81.465,6.36567548]
[1646963684626,9.17547957,81.569,81.45,14.54]
[1646963684827,101.6117869,81.569,81.451,6.131]
[1646963685028,27.23473322,81.568,81.446,6.131]
[1646963685226,6.131,81.567,81.446,6.131]
[1646963685429,18.4123,81.56,81.446,6.131]
[1646963685629,14.54,81.55,81.446,6.131]
[1646963685828,48.2154,81.549,81.446,6.131]
[1646963686029,6.132,81.548,81.446,6.131]
[1646963686228,9.17647957,81.548,81.446,6.131]
[1646963686428,6.132,81.548,81.446,6.131]
[1646963686628,3.04447957,81.547,81.446,6.131]
[1646963686829,6.132,81.546,81.447,52.69725909]
[1646963687029,18.4201,81.54,81.45,61.3674]
[1646963687228,3.04447957,81.545,81.451,6.0]
[1646963687429,48.2154,81.549,81.46,14.54]
[1646963687630,48.2154,81.549,81.461,6.0]
[1646963687830,48.2154,81.549,81.462,15.88826068]
[1646963688028,26.53279656,81.548,81.511,52.69725909]
[1646963688328,26.53279656,81.548,81.49,61.339]
[1646963688329,48.2154,81.549,81.47,14.54]
[1646963688527,48.2154,81.549,81.461,6.0]
[1646963689128,48.2154,81.549,81.48,18.4096]
[1646963689329,48.2154,81.549,81.481,65.51957059]
[1646963690329,48.2154,81.549,81.5,61.3361]
[1646963690529,48.2154,81.549,81.481,65.51957059]
[1646963691329,48.2154,81.549,81.51,18.4036]
[1646963691531,48.2154,81.549,81.511,3.06594918]
[1646963692737,42.43858606,81.565,81.511,3.06594918]
[1646963692935,6.132,81.596,81.513,5.18398742]
[1646963693135,3.04447957,81.586,81.513,5.18398742]
[1646963693537,6.131,81.585,81.513,5.18398742]
[1646963693738,18.4045,81.58,81.513,0.00398742]
[1646963693939,6.131,81.579,81.513,0.00398742]
[1646963694137,9.17547957,81.579,81.513,0.00398742]
[1646963694540,3.04447957,81.578,81.513,0.00398742]
[1646963694738,18.4046,81.57,81.513,0.00398742]
[1646963695038,27.53328844,81.569,81.513,0.00398742]
[1646963695243,50.91578844,81.569,81.513,0.00398742]
[1646963697139,18.4066,81.56,81.513,0.00398742]
[1646963697339,23.3825,81.559,81.513,0.00398742]
[1646963697540,26.42697957,81.559,81.513,0.00398742]
[1646963697742,3.04447957,81.558,81.513,0.00398742]
[1646963698240,18.4096,81.55,81.513,0.00398742]
[1646963698441,67.92907286,81.558,81.513,0.00398742]
[1646963698868,3.04447957,81.557,81.513,0.00398742]
[1646963700067,18.4088,81.55,81.513,0.00398742]
[1646963700266,61.74289736,81.549,81.513,0.00398742]
[1646963700470,3.04447957,81.549,81.513,0.00398742]
[1646963700674,3.04447957,81.548,81.513,0.00398742]
[1646963701369,24.6495,81.549,81.513,0.00398742]
[1646963702473,23.1497,81.567,81.513,0.00398742]
[1646963703472,23.1497,81.567,81.52,18.4018]
[1646963703671,24.8093,81.578,81.52,18.4018]
[1646963703873,6.131,81.596,81.52,32.9418]
[1646963704073,23.926,81.597,81.52,32.9418]
[1646963704273,23.926,81.597,81.53,61.2983]
[1646963704577,23.926,81.597,81.54,18.3895]
[1646963706674,23.926,81.597,81.54,32.9295]
[1646963706874,23.926,81.597,81.541,3.04447957]
[1646963707074,39.28369019,81.605,81.55,18.3906]
[1646963707273,39.28369019,81.605,81.551,6.01754452]
[1646963708477,39.28369019,81.605,81.56,18.3915]
[1646963709475,39.28369019,81.605,81.551,6.01754452]
[1646963709675,42.32816976,81.605,81.551,6.01754452]
[1646963710380,39.28369019,81.605,81.551,6.01754452]
[1646963711281,39.28369019,81.605,81.56,18.3926]
[1646963714386,39.28369019,81.605,81.531,6.128]
[1646963714586,52.51907957,81.604,81.531,6.128]
[1646963714787,18.3967,81.6,81.531,6.128]
[1646963715388,52.51907957,81.604,81.54,18.3972]
[1646963715590,49.4746,81.604,81.54,18.3972]
[1646963716992,49.4746,81.604,81.54,32.9372]
[1646963717391,49.4746,81.604,81.54,14.54]
[1646963717598,52.51907957,81.604,81.532,55.29130656]
[1646963717792,18.3973,81.6,81.5,14.54]